[Event "Early-Titled-Tuesday-Blitz-December-26-2023"]
[Site "Chess.com"]
[Date "2023.12.26"]
[Round "4"]
[White "IAgrest"]
[Black "Grammnik"]
[Result "1-0"]
[WhiteElo "2457"]
[BlackElo "2205"]
[TimeControl "180+1"]
[EndTime "8:38:49 PST"]
[Termination "IAgrest won by checkmate"]

1. e4 {[%clk 0:03:00.9]} 1... c6 {[%clk 0:02:59.4]} 2. d4 {[%clk 0:03:00.9]}
2... d5 {[%clk 0:02:59.1]} 3. f3 {[%clk 0:03:01.7]} 3... e6 {[%clk 0:02:57.9]}
4. Nc3 {[%clk 0:03:01.6]} 4... Bb4 {[%clk 0:02:57]} 5. Bd2 {[%clk 0:03:02]} 5...
dxe4 {[%clk 0:02:55.7]} 6. Nxe4 {[%clk 0:03:00.5]} 6... Bxd2+ {[%clk 0:02:53.8]}
7. Qxd2 {[%clk 0:03:00.5]} 7... Nf6 {[%clk 0:02:53.6]} 8. O-O-O {[%clk
0:02:58.1]} 8... a5 {[%clk 0:02:50.4]} 9. Nh3 {[%clk 0:02:52.5]} 9... Na6 {[%clk
0:02:49.5]} 10. Bxa6 {[%clk 0:02:46.6]} 10... Rxa6 {[%clk 0:02:48.6]} 11. Rhe1
{[%clk 0:02:43.4]} 11... a4 {[%clk 0:02:45.6]} 12. a3 {[%clk 0:02:43]} 12... Nd5
{[%clk 0:02:43.4]} 13. Nf4 {[%clk 0:02:36.7]} 13... O-O {[%clk 0:02:32]} 14. Nd3
{[%clk 0:02:28.5]} 14... b6 {[%clk 0:02:30.2]} 15. Kb1 {[%clk 0:02:17.7]} 15...
Ra5 {[%clk 0:02:25.3]} 16. Ne5 {[%clk 0:02:07]} 16... Bb7 {[%clk 0:02:24.3]} 17.
g4 {[%clk 0:01:59]} 17... Ra8 {[%clk 0:02:08.6]} 18. h4 {[%clk 0:01:48.1]} 18...
f6 {[%clk 0:02:03.7]} 19. Nc4 {[%clk 0:01:44.9]} 19... b5 {[%clk 0:01:58.5]} 20.
Ne3 {[%clk 0:01:32.8]} 20... Bc8 {[%clk 0:01:51.9]} 21. Nc5 {[%clk 0:01:28.4]}
21... Ra7 {[%clk 0:01:48.2]} 22. h5 {[%clk 0:01:18]} 22... h6 {[%clk 0:01:46.1]}
23. Ng2 {[%clk 0:01:12.4]} 23... Qd6 {[%clk 0:01:45.2]} 24. Ne4 {[%clk
0:01:09.8]} 24... Qb8 {[%clk 0:01:37.7]} 25. c3 {[%clk 0:01:07.9]} 25... Bd7
{[%clk 0:01:34.3]} 26. Nc5 {[%clk 0:01:07.3]} 26... Bc8 {[%clk 0:01:34.5]} 27.
Nxe6 {[%clk 0:01:06.1]} 27... Re8 {[%clk 0:01:28.5]} 28. Nef4 {[%clk 0:00:58.5]}
28... Ne7 {[%clk 0:01:10.2]} 29. Ng6 {[%clk 0:00:53.4]} 29... Kf7 {[%clk
0:01:01.8]} 30. N2f4 {[%clk 0:00:48.7]} 30... b4 {[%clk 0:00:56.7]} 31. cxb4
{[%clk 0:00:47]} 31... Ba6 {[%clk 0:00:56.7]} 32. d5 {[%clk 0:00:37.5]} 32...
cxd5 {[%clk 0:00:55.7]} 33. Nxd5 {[%clk 0:00:32]} 33... Nxg6 {[%clk 0:00:55.3]}
34. hxg6+ {[%clk 0:00:24.6]} 34... Kxg6 {[%clk 0:00:55.3]} 35. Nf4+ {[%clk
0:00:16.1]} 35... Kh7 {[%clk 0:00:54.9]} 36. Qc2+ {[%clk 0:00:14.7]} 36... Kg8
{[%clk 0:00:52.6]} 37. Qg6 {[%clk 0:00:12.3]} 37... Rf7 {[%clk 0:00:33]} 38. Nd5
{[%clk 0:00:10.1]} 38... Rxe1 {[%clk 0:00:24.4]} 39. Rxe1 {[%clk 0:00:11]} 39...
Bc4 {[%clk 0:00:23.9]} 40. Nxf6+ {[%clk 0:00:09.5]} 40... Kf8 {[%clk 0:00:18.2]}
41. Re8+ {[%clk 0:00:08.9]} 41... Qxe8 {[%clk 0:00:14.3]} 42. Nxe8 {[%clk
0:00:09.8]} 42... Bb3 {[%clk 0:00:08.7]} 43. Nd6 {[%clk 0:00:06.1]} 43... Rxf3
{[%clk 0:00:07.2]} 44. Qe8# {[%clk 0:00:06]} 1-0

[Event "Early-Titled-Tuesday-Blitz-December-26-2023"]
[Site "Chess.com"]
[Date "2023.12.26"]
[Round "4"]
[White "FelixBlohberger"]
[Black "Devil_Sun"]
[Result "1-0"]
[WhiteElo "2782"]
[BlackElo "2594"]
[TimeControl "180+1"]
[EndTime "8:38:53 PST"]
[Termination "FelixBlohberger won by resignation"]

1. e4 {[%clk 0:03:00.9]} 1... e6 {[%clk 0:02:58.4]} 2. d4 {[%clk 0:02:59.2]}
2... d5 {[%clk 0:02:58.9]} 3. exd5 {[%clk 0:02:59.9]} 3... exd5 {[%clk 0:02:59]}
4. Nf3 {[%clk 0:03:00.8]} 4... Bd6 {[%clk 0:02:57.4]} 5. c4 {[%clk 0:02:59.1]}
5... dxc4 {[%clk 0:02:51.9]} 6. Bxc4 {[%clk 0:03:00]} 6... Nf6 {[%clk
0:02:52.3]} 7. Qe2+ {[%clk 0:02:59.6]} 7... Qe7 {[%clk 0:02:51.5]} 8. Qxe7+
{[%clk 0:02:58.2]} 8... Kxe7 {[%clk 0:02:52.4]} 9. O-O {[%clk 0:02:57.8]} 9...
h6 {[%clk 0:02:39.8]} 10. Re1+ {[%clk 0:02:57.2]} 10... Kd8 {[%clk 0:02:40.4]}
11. Bxf7 {[%clk 0:02:53.5]} 11... Nc6 {[%clk 0:02:39.5]} 12. Nc3 {[%clk
0:02:50.5]} 12... Bg4 {[%clk 0:02:39]} 13. Ne5 {[%clk 0:02:21.9]} 13... Nxd4
{[%clk 0:02:20.8]} 14. Bg6 {[%clk 0:02:20.5]} 14... Bxe5 {[%clk 0:02:02.1]} 15.
Rxe5 {[%clk 0:02:19.2]} 15... Nc6 {[%clk 0:02:03]} 16. Re1 {[%clk 0:02:15.5]}
16... Ne7 {[%clk 0:01:52.6]} 17. Bc2 {[%clk 0:02:07]} 17... Bf5 {[%clk
0:01:32.8]} 18. Rxe7 {[%clk 0:02:04.6]} 18... Kxe7 {[%clk 0:01:30.3]} 19. Bxf5
{[%clk 0:02:04.1]} 19... Rad8 {[%clk 0:01:28.3]} 20. Bf4 {[%clk 0:02:03.4]}
20... c6 {[%clk 0:01:28]} 21. Re1+ {[%clk 0:02:00.4]} 21... Kf7 {[%clk
0:01:28.2]} 22. Be6+ {[%clk 0:01:50.1]} 22... Kg6 {[%clk 0:01:28]} 23. Bb3
{[%clk 0:01:38.7]} 23... Rhe8 {[%clk 0:01:25.8]} 24. Rxe8 {[%clk 0:01:31.7]}
24... Rxe8 {[%clk 0:01:26.7]} 25. Kf1 {[%clk 0:01:28.2]} 25... Kf5 {[%clk
0:01:20.7]} 26. Bd2 {[%clk 0:01:15.2]} 26... Ke5 {[%clk 0:00:58.9]} 27. f3
{[%clk 0:01:13.6]} 27... Nd5 {[%clk 0:00:57.2]} 28. a3 {[%clk 0:01:06.1]} 28...
Nf4 {[%clk 0:00:43.5]} 29. Bxf4+ {[%clk 0:00:47.2]} 29... Kxf4 {[%clk
0:00:43.2]} 30. Kf2 {[%clk 0:00:46]} 30... Rd8 {[%clk 0:00:33]} 31. g3+ {[%clk
0:00:46.1]} 31... Ke5 {[%clk 0:00:32.7]} 32. Ke3 {[%clk 0:00:45.4]} 32... b5
{[%clk 0:00:29.1]} 33. Ne4 {[%clk 0:00:41.7]} 33... a5 {[%clk 0:00:26.3]} 34. h4
{[%clk 0:00:35.2]} 34... a4 {[%clk 0:00:20.4]} 35. Bc2 {[%clk 0:00:35.2]} 35...
Kd5 {[%clk 0:00:18.5]} 36. Bd3 {[%clk 0:00:32.4]} 36... Rb8 {[%clk 0:00:17.7]}
37. f4 {[%clk 0:00:29.3]} 37... c5 {[%clk 0:00:17]} 38. Nc3+ {[%clk 0:00:27.1]}
38... Kc6 {[%clk 0:00:16.8]} 39. Bxb5+ {[%clk 0:00:23.7]} 39... Rxb5 {[%clk
0:00:16.5]} 40. Nxb5 {[%clk 0:00:24]} 40... Kxb5 {[%clk 0:00:17.3]} 41. Kd3
{[%clk 0:00:21.7]} 41... h5 {[%clk 0:00:17]} 42. f5 {[%clk 0:00:20.6]} 42... Kb6
{[%clk 0:00:15.8]} 43. Ke4 {[%clk 0:00:19.7]} 43... Kb5 {[%clk 0:00:15.3]} 44.
Kd5 {[%clk 0:00:19.8]} 44... Kb6 {[%clk 0:00:13.9]} 45. Ke6 {[%clk 0:00:20.1]}
45... c4 {[%clk 0:00:14.2]} 46. Kd5 {[%clk 0:00:18.3]} 46... Kb5 {[%clk
0:00:14]} 47. Kd4 {[%clk 0:00:18.4]} 47... Kc6 {[%clk 0:00:12.8]} 48. Kxc4
{[%clk 0:00:18.7]} 48... Kd6 {[%clk 0:00:13.7]} 49. Kd4 {[%clk 0:00:19.1]} 1-0

[Event "Early-Titled-Tuesday-Blitz-December-26-2023"]
[Site "Chess.com"]
[Date "2023.12.26"]
[Round "4"]
[White "arturdailima"]
[Black "JoliyRoger"]
[Result "1-0"]
[WhiteElo "2341"]
[BlackElo "2505"]
[TimeControl "180+1"]
[EndTime "8:38:56 PST"]
[Termination "arturdailima won on time"]

1. c4 {[%clk 0:03:00.9]} 1... c5 {[%clk 0:02:58.6]} 2. Nc3 {[%clk 0:03:00.7]}
2... e6 {[%clk 0:02:59.2]} 3. Nf3 {[%clk 0:02:58.6]} 3... Nf6 {[%clk 0:02:59.6]}
4. g3 {[%clk 0:02:58.6]} 4... Be7 {[%clk 0:02:59.3]} 5. Bg2 {[%clk 0:02:58.5]}
5... O-O {[%clk 0:03:00.2]} 6. O-O {[%clk 0:02:58.8]} 6... Nc6 {[%clk
0:03:00.7]} 7. b3 {[%clk 0:02:53.9]} 7... a6 {[%clk 0:03:00]} 8. Bb2 {[%clk
0:02:53.5]} 8... Qc7 {[%clk 0:03:00.5]} 9. d4 {[%clk 0:02:52.6]} 9... cxd4
{[%clk 0:03:01.4]} 10. Nxd4 {[%clk 0:02:53.2]} 10... Ne5 {[%clk 0:03:02]} 11.
Rc1 {[%clk 0:02:49.5]} 11... d6 {[%clk 0:03:02.4]} 12. Qd2 {[%clk 0:02:46.7]}
12... Rb8 {[%clk 0:03:02.2]} 13. h3 {[%clk 0:02:40.8]} 13... Re8 {[%clk
0:03:01.7]} 14. Rfe1 {[%clk 0:02:41.2]} 14... Bf8 {[%clk 0:03:01.4]} 15. e3
{[%clk 0:02:36.6]} 15... h6 {[%clk 0:02:59.7]} 16. Kh2 {[%clk 0:02:34.8]} 16...
Nfd7 {[%clk 0:02:58.4]} 17. Nce2 {[%clk 0:02:29.1]} 17... Nc5 {[%clk 0:02:58]}
18. Nf4 {[%clk 0:02:28]} 18... Be7 {[%clk 0:02:46.2]} 19. Nf3 {[%clk 0:02:21.8]}
19... Bg5 {[%clk 0:02:16.2]} 20. Bxe5 {[%clk 0:01:51.2]} 20... dxe5 {[%clk
0:02:15.2]} 21. Nxg5 {[%clk 0:01:51.3]} 21... hxg5 {[%clk 0:02:15.7]} 22. b4
{[%clk 0:01:12.1]} 22... exf4 {[%clk 0:02:15.3]} 23. bxc5 {[%clk 0:01:11.3]}
23... fxg3+ {[%clk 0:02:14.7]} 24. fxg3 {[%clk 0:01:12.2]} 24... Qxc5 {[%clk
0:02:14.2]} 25. Red1 {[%clk 0:01:07.1]} 25... Qc7 {[%clk 0:01:49.7]} 26. Qd4
{[%clk 0:01:03.3]} 26... e5 {[%clk 0:01:45.3]} 27. Qe4 {[%clk 0:01:02.1]} 27...
f5 {[%clk 0:01:38.6]} 28. Qd5+ {[%clk 0:00:59.6]} 28... Be6 {[%clk 0:01:39]} 29.
Qd3 {[%clk 0:00:57.7]} 29... e4 {[%clk 0:01:32.1]} 30. Qc3 {[%clk 0:00:54.2]}
30... Rbc8 {[%clk 0:01:26.1]} 31. Rd4 {[%clk 0:00:53.5]} 31... b5 {[%clk
0:01:23]} 32. c5 {[%clk 0:00:53]} 32... Bxa2 {[%clk 0:01:23.4]} 33. Qa3 {[%clk
0:00:32.3]} 33... Bc4 {[%clk 0:01:22.7]} 34. Bf1 {[%clk 0:00:32.9]} 34... Qxc5
{[%clk 0:01:12.8]} 35. Qxa6 {[%clk 0:00:30.2]} 35... Ra8 {[%clk 0:00:50.5]} 36.
Qg6 {[%clk 0:00:20.9]} 36... Qe7 {[%clk 0:00:07.3]} 37. Qxf5 {[%clk 0:00:10.4]}
37... Rf8 {[%clk 0:00:05.2]} 38. Qxe4 {[%clk 0:00:10.7]} 38... Ra2+ {[%clk
0:00:02.8]} 39. Kg1 {[%clk 0:00:10.4]} 39... Qc7 {[%clk 0:00:02]} 40. Qg4 {[%clk
0:00:02.6]} 1-0

[Event "Early-Titled-Tuesday-Blitz-December-26-2023"]
[Site "Chess.com"]
[Date "2023.12.26"]
[Round "4"]
[White "DuleMudule"]
[Black "NelsonLinda"]
[Result "1-0"]
[WhiteElo "2935"]
[BlackElo "2624"]
[TimeControl "180+1"]
[EndTime "8:38:57 PST"]
[Termination "DuleMudule won on time"]

1. d4 {[%clk 0:03:00.9]} 1... Nf6 {[%clk 0:02:55.3]} 2. Bg5 {[%clk 0:03:00.4]}
2... e6 {[%clk 0:02:42]} 3. e3 {[%clk 0:02:58.6]} 3... h6 {[%clk 0:02:41.7]} 4.
Bh4 {[%clk 0:02:58.3]} 4... d6 {[%clk 0:02:34.8]} 5. Nd2 {[%clk 0:02:55.6]} 5...
Nbd7 {[%clk 0:02:34.2]} 6. Ngf3 {[%clk 0:02:55.2]} 6... b6 {[%clk 0:02:34.4]} 7.
Bd3 {[%clk 0:02:51.2]} 7... Bb7 {[%clk 0:02:33.2]} 8. Bxf6 {[%clk 0:02:43.5]}
8... Nxf6 {[%clk 0:02:32.9]} 9. Qe2 {[%clk 0:02:44]} 9... Nd7 {[%clk 0:01:56.1]}
10. Ba6 {[%clk 0:02:34.6]} 10... Qc8 {[%clk 0:01:54.5]} 11. Bxb7 {[%clk
0:02:34.4]} 11... Qxb7 {[%clk 0:01:55.4]} 12. a4 {[%clk 0:02:34.7]} 12... a6
{[%clk 0:01:54.8]} 13. c3 {[%clk 0:02:33.4]} 13... Be7 {[%clk 0:01:53.3]} 14. h4
{[%clk 0:02:28.7]} 14... e5 {[%clk 0:01:44.4]} 15. Qd3 {[%clk 0:02:20.3]} 15...
Bf6 {[%clk 0:01:02.5]} 16. O-O-O {[%clk 0:02:10.8]} 16... O-O-O {[%clk
0:00:59.6]} 17. g4 {[%clk 0:02:10.2]} 17... g6 {[%clk 0:00:58.4]} 18. dxe5
{[%clk 0:02:02]} 18... Bxe5 {[%clk 0:00:48.9]} 19. h5 {[%clk 0:01:57.8]} 19...
g5 {[%clk 0:00:46.4]} 20. Qf5 {[%clk 0:01:57.7]} 20... Qd5 {[%clk 0:00:39.7]}
21. Nd4 {[%clk 0:01:31.4]} 21... Qa2 {[%clk 0:00:38.5]} 22. Qc2 {[%clk
0:01:10.9]} 22... Nc5 {[%clk 0:00:36.3]} 23. Nc6 {[%clk 0:01:05.2]} 23... Rde8
{[%clk 0:00:30.3]} 24. b3 {[%clk 0:00:56.2]} 24... Qa1+ {[%clk 0:00:06.4]} 25.
Nb1 {[%clk 0:00:51.7]} 25... Bg7 {[%clk 0:00:04.3]} 26. Nb4 {[%clk 0:00:18.8]}
26... Ne4 {[%clk 0:00:03]} 27. Nd5 {[%clk 0:00:18.8]} 27... b5 {[%clk
0:00:02.6]} 28. f3 {[%clk 0:00:18.6]} 28... Nc5 {[%clk 0:00:02.5]} 29. Kd2
{[%clk 0:00:18.2]} 29... bxa4 {[%clk 0:00:02.5]} 30. b4 {[%clk 0:00:18.5]} 30...
Nb3+ {[%clk 0:00:02.5]} 31. Ke2 {[%clk 0:00:19.1]} 31... Kb7 {[%clk 0:00:02.1]}
32. Nd2 {[%clk 0:00:19.1]} 32... Qa3 {[%clk 0:00:02]} 33. Nc4 {[%clk 0:00:19.3]}
33... Na1 {[%clk 0:00:01.2]} 34. Nxa3 {[%clk 0:00:17.6]} 34... Nxc2 {[%clk
0:00:01.4]} 35. Nxc2 {[%clk 0:00:18.5]} 35... c6 {[%clk 0:00:01.6]} 36. Rd3
{[%clk 0:00:16.9]} 36... cxd5 {[%clk 0:00:01.9]} 37. Rxd5 {[%clk 0:00:17.4]}
37... Bxc3 {[%clk 0:00:02.4]} 38. Rhd1 {[%clk 0:00:16.6]} 38... Be5 {[%clk
0:00:01.7]} 39. Ne1 {[%clk 0:00:15.9]} 39... Rc8 {[%clk 0:00:02.2]} 40. Nd3
{[%clk 0:00:15.6]} 40... Rc2+ {[%clk 0:00:02.8]} 41. Rd2 {[%clk 0:00:15.8]}
41... Rxd2+ {[%clk 0:00:02.8]} 42. Kxd2 {[%clk 0:00:16.7]} 42... Bh2 {[%clk
0:00:03.1]} 43. Ra5 {[%clk 0:00:15.6]} 43... Rc8 {[%clk 0:00:02.2]} 44. Rxa4
{[%clk 0:00:16]} 44... Re8 {[%clk 0:00:01.5]} 45. e4 {[%clk 0:00:15.5]} 1-0

[Event "Early-Titled-Tuesday-Blitz-December-26-2023"]
[Site "Chess.com"]
[Date "2023.12.26"]
[Round "4"]
[White "DarkAlekhine"]
[Black "Flameboard08"]
[Result "1-0"]
[WhiteElo "2725"]
[BlackElo "2553"]
[TimeControl "180+1"]
[EndTime "8:39:03 PST"]
[Termination "DarkAlekhine won by resignation"]

1. d4 {[%clk 0:03:00]} 1... b6 {[%clk 0:03:00.3]} 2. e4 {[%clk 0:02:59.4]} 2...
Bb7 {[%clk 0:03:00.7]} 3. Bd3 {[%clk 0:02:58.3]} 3... e6 {[%clk 0:03:00.3]} 4.
Nf3 {[%clk 0:02:56.7]} 4... c5 {[%clk 0:02:58.9]} 5. c3 {[%clk 0:02:46.9]} 5...
d5 {[%clk 0:02:56.3]} 6. e5 {[%clk 0:02:46.1]} 6... Nc6 {[%clk 0:01:31.7]} 7.
O-O {[%clk 0:02:45.1]} 7... Nge7 {[%clk 0:01:30.6]} 8. Re1 {[%clk 0:02:44.3]}
8... Nf5 {[%clk 0:01:30.1]} 9. Bg5 {[%clk 0:01:58.6]} 9... Be7 {[%clk
0:01:29.2]} 10. Bxe7 {[%clk 0:01:53.9]} 10... Qxe7 {[%clk 0:01:30.1]} 11. Bxf5
{[%clk 0:01:52.6]} 11... exf5 {[%clk 0:01:29.6]} 12. dxc5 {[%clk 0:01:43.8]}
12... bxc5 {[%clk 0:01:23.7]} 13. Nbd2 {[%clk 0:01:34.3]} 13... O-O {[%clk
0:01:22.5]} 14. Qa4 {[%clk 0:01:32.7]} 14... a5 {[%clk 0:01:22.5]} 15. Nf1
{[%clk 0:01:31.1]} 15... Nd8 {[%clk 0:01:19.6]} 16. Rad1 {[%clk 0:01:20.3]}
16... Ne6 {[%clk 0:01:19.2]} 17. Ne3 {[%clk 0:01:19.1]} 17... d4 {[%clk
0:01:02.2]} 18. Nxf5 {[%clk 0:01:16.4]} 18... Qd8 {[%clk 0:01:02.8]} 19. N5h4
{[%clk 0:00:25]} 19... Nf4 {[%clk 0:00:57.4]} 20. cxd4 {[%clk 0:00:21.2]} 20...
Nxg2 {[%clk 0:00:55.6]} 21. dxc5 {[%clk 0:00:16.8]} 21... Nxh4 {[%clk
0:00:51.8]} 22. Qxh4 {[%clk 0:00:11.7]} 22... Qc7 {[%clk 0:00:49.5]} 23. Ng5
{[%clk 0:00:08.9]} 23... h6 {[%clk 0:00:48.4]} 24. Ne4 {[%clk 0:00:09.2]} 24...
Qxe5 {[%clk 0:00:46.9]} 25. Nd6 {[%clk 0:00:06.3]} 25... Qxc5 {[%clk 0:00:27.2]}
26. Nxb7 {[%clk 0:00:05.9]} 26... Qb6 {[%clk 0:00:26.8]} 27. Nd6 {[%clk
0:00:05.8]} 27... Qxb2 {[%clk 0:00:27.1]} 28. Nf5 {[%clk 0:00:04.7]} 28... Ra6
{[%clk 0:00:24.1]} 29. Kh1 {[%clk 0:00:03.8]} 29... Qb7+ {[%clk 0:00:22.4]} 30.
Qe4 {[%clk 0:00:03.6]} 30... Qb2 {[%clk 0:00:21.9]} 31. Rg1 {[%clk 0:00:02.9]}
31... g6 {[%clk 0:00:18.4]} 32. Nxh6+ {[%clk 0:00:03.2]} 32... Kh7 {[%clk
0:00:18]} 33. Ng4 {[%clk 0:00:04.1]} 33... Re6 {[%clk 0:00:16.5]} 34. Qf3 {[%clk
0:00:04.1]} 34... Qxa2 {[%clk 0:00:16.5]} 35. Ne3 {[%clk 0:00:04.3]} 35... a4
{[%clk 0:00:14.9]} 36. Rd4 {[%clk 0:00:04.7]} 36... Qb2 {[%clk 0:00:13]} 37.
Rh4+ {[%clk 0:00:05]} 37... Kg8 {[%clk 0:00:12.8]} 38. Nf5 {[%clk 0:00:05.1]}
38... Qf6 {[%clk 0:00:11.5]} 39. Nh6+ {[%clk 0:00:05.1]} 39... Kg7 {[%clk
0:00:11.2]} 40. Nf5+ {[%clk 0:00:05.5]} 40... Kg8 {[%clk 0:00:10.5]} 41. Qh5
{[%clk 0:00:06]} 41... Ra8 {[%clk 0:00:02]} 42. Qh7+ {[%clk 0:00:05.7]} 42...
Kf8 {[%clk 0:00:02.7]} 43. Qh8+ {[%clk 0:00:06.6]} 1-0

[Event "Early-Titled-Tuesday-Blitz-December-26-2023"]
[Site "Chess.com"]
[Date "2023.12.26"]
[Round "4"]
[White "giomar27"]
[Black "AlexPapasimakopoulos"]
[Result "0-1"]
[WhiteElo "2392"]
[BlackElo "2631"]
[TimeControl "180+1"]
[EndTime "8:39:06 PST"]
[Termination "AlexPapasimakopoulos won on time"]

1. e4 {[%clk 0:03:00.9]} 1... e6 {[%clk 0:02:48.1]} 2. d3 {[%clk 0:03:00.3]}
2... d5 {[%clk 0:02:48.7]} 3. Nd2 {[%clk 0:03:00.9]} 3... c5 {[%clk 0:02:48.1]}
4. Ngf3 {[%clk 0:03:00.6]} 4... Nc6 {[%clk 0:02:48.6]} 5. g3 {[%clk 0:03:00.9]}
5... Nge7 {[%clk 0:02:48.7]} 6. Bg2 {[%clk 0:03:00.8]} 6... g6 {[%clk
0:02:49.2]} 7. O-O {[%clk 0:03:00.7]} 7... Bg7 {[%clk 0:02:49.7]} 8. c3 {[%clk
0:02:59.2]} 8... h6 {[%clk 0:02:47]} 9. Re1 {[%clk 0:02:58.7]} 9... O-O {[%clk
0:02:46.3]} 10. a4 {[%clk 0:02:48.3]} 10... a6 {[%clk 0:02:41.5]} 11. Qe2 {[%clk
0:02:47.4]} 11... Rb8 {[%clk 0:02:36.4]} 12. Nf1 {[%clk 0:02:47.2]} 12... b5
{[%clk 0:02:36.3]} 13. axb5 {[%clk 0:02:46.9]} 13... axb5 {[%clk 0:02:37.2]} 14.
h4 {[%clk 0:02:44.1]} 14... b4 {[%clk 0:02:36.5]} 15. Ne3 {[%clk 0:02:43.1]}
15... bxc3 {[%clk 0:02:36.1]} 16. Rb1 {[%clk 0:02:39.3]} 16... cxb2 {[%clk
0:02:30.6]} 17. Bxb2 {[%clk 0:02:38.2]} 17... Nd4 {[%clk 0:02:22.6]} 18. Nxd4
{[%clk 0:02:28.9]} 18... cxd4 {[%clk 0:02:22]} 19. Nc2 {[%clk 0:02:26]} 19...
dxe4 {[%clk 0:02:20.6]} 20. Bxe4 {[%clk 0:02:21.9]} 20... e5 {[%clk 0:02:17.8]}
21. Ba3 {[%clk 0:02:21.7]} 21... Rxb1 {[%clk 0:02:16.1]} 22. Rxb1 {[%clk
0:02:21.4]} 22... Re8 {[%clk 0:02:10.8]} 23. Nb4 {[%clk 0:02:18]} 23... Qa5
{[%clk 0:02:06.3]} 24. Qb2 {[%clk 0:02:11.3]} 24... Be6 {[%clk 0:01:53]} 25. Nc6
{[%clk 0:01:37.2]} 25... Nxc6 {[%clk 0:01:51.5]} 26. Bxc6 {[%clk 0:01:38.1]}
26... Rc8 {[%clk 0:01:51.2]} 27. Bb7 {[%clk 0:01:32.8]} 27... Rb8 {[%clk
0:01:43.3]} 28. Bd6 {[%clk 0:01:32]} 28... Rd8 {[%clk 0:01:43.7]} 29. Be7 {[%clk
0:01:30.2]} 29... Re8 {[%clk 0:01:41.4]} 30. Bb4 {[%clk 0:01:26.2]} 30... Qb5
{[%clk 0:01:39.5]} 31. Be4 {[%clk 0:01:05.4]} 31... f5 {[%clk 0:01:30.1]} 32.
Bg2 {[%clk 0:01:05.2]} 32... Qxd3 {[%clk 0:01:29.3]} 33. Bf1 {[%clk 0:01:05.2]}
33... Qf3 {[%clk 0:01:18.9]} 34. Bg2 {[%clk 0:01:04.7]} 34... Qg4 {[%clk
0:01:18.6]} 35. Be1 {[%clk 0:00:37]} 35... g5 {[%clk 0:01:15]} 36. f3 {[%clk
0:00:34.5]} 36... Qh5 {[%clk 0:01:13.4]} 37. hxg5 {[%clk 0:00:27.3]} 37... hxg5
{[%clk 0:01:13]} 38. Qb5 {[%clk 0:00:27.3]} 38... Qf7 {[%clk 0:01:11.1]} 39. Qc6
{[%clk 0:00:24.2]} 39... Bd5 {[%clk 0:01:08.9]} 40. Qa6 {[%clk 0:00:23.1]} 40...
Ra8 {[%clk 0:01:06.9]} 41. Qd6 {[%clk 0:00:21]} 41... g4 {[%clk 0:00:57.5]} 42.
fxg4 {[%clk 0:00:20]} 42... Bxg2 {[%clk 0:00:57.5]} 43. Kxg2 {[%clk 0:00:13.7]}
43... fxg4 {[%clk 0:00:57.9]} 44. Rb2 {[%clk 0:00:08.6]} 44... Qf3+ {[%clk
0:00:55.3]} 45. Kh2 {[%clk 0:00:06.4]} 45... Kh7 {[%clk 0:00:47.8]} 46. Qe7
{[%clk 0:00:03.2]} 46... Ra6 {[%clk 0:00:46.5]} 47. Kg1 {[%clk 0:00:02.4]} 47...
Rh6 {[%clk 0:00:46.2]} 48. Rh2 {[%clk 0:00:02.4]} 48... Rxh2 {[%clk 0:00:42.6]}
49. Kxh2 {[%clk 0:00:02.8]} 49... Qe2+ {[%clk 0:00:42.7]} 50. Kg1 {[%clk
0:00:03.2]} 50... Qxe1+ {[%clk 0:00:43]} 51. Kh2 {[%clk 0:00:03.9]} 51... Qe2+
{[%clk 0:00:39.3]} 52. Kh1 {[%clk 0:00:04.3]} 52... Qf3+ {[%clk 0:00:37.7]} 53.
Kh2 {[%clk 0:00:04.4]} 53... d3 {[%clk 0:00:36.8]} 54. Qh4+ {[%clk 0:00:04]}
54... Kg6 {[%clk 0:00:37.4]} 55. Qe7 {[%clk 0:00:02.2]} 55... e4 {[%clk
0:00:33.8]} 56. Qe8+ {[%clk 0:00:01.2]} 56... Kh6 {[%clk 0:00:32.8]} 57. Qe6+
{[%clk 0:00:01.1]} 57... Kh7 {[%clk 0:00:32.9]} 58. Qe8 {[%clk 0:00:01.2]} 58...
Qf5 {[%clk 0:00:28.3]} 0-1